bitfinex-derivatives/quotes_BNBF0:USTF0_20250908
["timestamp","ask_amount","ask_price","bid_price","bid_amount"]
[1757372212869,0.63714667,876.12,874.26,0.19831998]
[1757372213169,1.5115515,876.24,874.26,0.19831998]
[1757372213365,0.63714425,876.23,874.26,0.19831998]
[1757372213668,0.63714425,876.22,874.26,0.19831998]
[1757372213866,0.63714425,876.21,874.26,0.19831998]
[1757372214167,0.63714425,876.2,874.26,0.19831998]
[1757372214368,0.63714425,876.19,874.26,0.19831998]
[1757372214568,0.63714425,876.18,874.26,0.19831998]
[1757372214769,0.63714425,876.17,874.26,0.19831998]
[1757372215064,0.63714425,876.16,874.26,0.19831998]
[1757372215265,0.63714425,876.15,874.26,0.19831998]
[1757372215465,0.63714425,876.14,874.26,0.19831998]
[1757372215765,0.63714425,876.13,874.26,0.19831998]
[1757372215964,0.63714425,876.12,874.26,0.19831998]
[1757372216266,1.5115515,876.2,874.26,0.19831998]
[1757372216471,0.63715041,876.19,874.26,0.19831998]
[1757372216768,0.63715041,876.18,874.26,0.19831998]
[1757372216968,0.63715041,876.17,874.26,0.19831998]
[1757372217165,0.63715041,876.16,874.26,0.19831998]
[1757372217366,0.63715041,876.15,874.26,0.19831998]
[1757372217668,0.63715041,876.14,874.26,0.19831998]
[1757372217869,0.63715041,876.13,874.26,0.19831998]
[1757372218165,0.63715041,876.12,874.26,0.19831998]
[1757372218369,1.5115515,876.19,874.26,0.19831998]
[1757372218566,0.63715778,876.18,874.26,0.19831998]
[1757372218766,0.63715778,876.17,874.26,0.19831998]
[1757372218971,0.63715778,876.16,874.26,0.19831998]
[1757372219170,0.63715778,876.15,874.26,0.19831998]
[1757372219368,0.63715778,876.14,874.26,0.19831998]
[1757372219667,0.63715778,876.13,874.26,0.19831998]
[1757372219867,0.63715778,876.12,874.26,0.19831998]
[1757372220171,1.5115515,876.12,874.26,0.19831998]
[1757372222174,1.5115515,876.12,874.16,2.5308841]
[1757372222374,1.5115515,876.12,874.44,0.1983505]
[1757372262801,4.051386,876.63,874.44,0.1983505]
[1757372262998,0.63795404,876.62,874.44,0.1983505]
[1757372263300,1.5115515,876.46,874.44,0.1983505]
[1757372263502,2.14950554,876.45,874.44,0.1983505]
[1757372263704,0.63795404,876.44,874.44,0.1983505]
[1757372263906,0.63795404,876.43,874.44,0.1983505]
[1757372264101,0.63795404,876.42,874.44,0.1983505]
[1757372264305,0.63795404,876.41,874.44,0.1983505]
[1757372264603,0.63795404,876.4,874.44,0.1983505]
[1757372264804,0.63795404,876.39,874.44,0.1983505]
[1757372265008,1.5115515,876.5,874.44,0.1983505]
[1757372265201,2.5398345,877.35,874.44,0.1983505]
[1757372265202,0.63728509,876.49,874.44,0.1983505]
[1757372265405,0.63728509,876.48,874.44,0.1983505]
[1757372265604,0.63728509,876.47,874.44,0.1983505]
[1757372265807,0.63728509,876.46,874.44,0.1983505]
[1757372266109,0.63728509,876.45,874.44,0.1983505]
[1757372266306,0.63728509,876.44,874.44,0.1983505]
[1757372266506,0.63728509,876.43,874.03,2.5308841]
[1757372266705,0.63728509,876.42,874.03,2.5308841]
[1757372266905,0.63728509,876.41,874.03,2.5308841]
[1757372267108,0.63728509,876.4,874.03,2.5308841]
[1757372267308,0.63728509,876.39,874.03,2.5308841]
[1757372267506,1.5115515,876.56,873.99,2.5308841]
[1757372267708,0.63668071,876.55,873.99,2.5308841]
[1757372267909,0.63668071,876.54,873.99,2.5308841]
[1757372268111,1.5115515,876.56,873.99,2.5308841]
[1757372268112,0.63668071,876.53,873.99,2.5308841]
[1757372268408,0.63668071,876.52,873.98,2.5308841]
[1757372268609,0.63668071,876.51,873.98,2.5308841]
[1757372268813,1.5115515,876.57,873.98,2.5308841]
[1757372268814,0.63668071,876.5,873.98,2.5308841]
[1757372269011,0.63668071,876.49,873.98,2.5308841]
[1757372269209,0.63668071,876.48,873.98,2.5308841]
[1757372269417,0.63668071,876.47,873.98,2.5308841]
[1757372269613,0.63668071,876.46,873.97,2.5308841]
[1757372269811,0.63668071,876.45,873.97,2.5308841]
[1757372270014,0.63668071,876.44,873.97,2.5308841]
[1757372270315,0.63668071,876.43,873.97,2.5308841]
[1757372270512,0.63668071,876.42,873.97,2.5308841]
[1757372270716,0.63668071,876.41,873.97,2.5308841]
[1757372270917,0.63668071,876.4,873.97,2.5308841]
[1757372271115,0.63668071,876.39,873.97,2.5308841]
[1757372271313,1.5115515,876.6,873.97,2.5308841]
[1757372271517,0.63624951,876.59,873.97,2.5308841]
[1757372271716,0.63624951,876.58,873.96,2.5308841]
[1757372271918,0.63624951,876.57,873.96,2.5308841]
[1757372272214,0.63624951,876.56,873.95,2.5308841]
[1757372272418,0.63624951,876.55,873.95,2.5308841]
[1757372272612,0.63624951,876.54,873.95,2.5308841]
[1757372272817,0.63624951,876.53,873.98,2.5308841]
[1757372273016,0.63624951,876.52,873.98,2.5308841]
[1757372273214,0.63624951,876.51,873.97,2.5308841]
[1757372273515,0.63624951,876.5,873.97,2.5308841]
[1757372273718,0.63624951,876.49,874.08,2.5308841]
[1757372273919,0.63624951,876.48,874.08,2.5308841]
[1757372274115,0.63624951,876.47,874.08,2.5308841]
[1757372274318,0.63624951,876.46,874.21,2.5308841]
[1757372274620,1.5115515,876.42,874.21,2.5308841]
[1757372274822,0.63624951,876.41,874.32,2.5308841]
[1757372275017,0.63624951,876.4,874.32,2.5308841]
[1757372275319,0.63624951,876.39,874.33,2.5308841]
[1757372275516,1.5115515,876.41,874.33,2.5308841]
[1757372275720,0.63590591,876.4,874.34,2.5308841]
[1757372275919,0.63590591,876.39,874.34,2.5308841]
[1757372276120,1.5115515,876.43,874.34,2.5308841]
[1757372276320,0.63585227,876.42,874.3,2.5308841]
[1757372276519,0.63585227,876.41,874.3,2.5308841]
[1757372276717,0.63585227,876.4,874.3,2.5308841]
[1757372277016,0.63585227,876.39,874.59,0.19829625]
[1757372277221,1.5115515,876.4,874.59,0.19829625]
[1757372277420,0.63577503,876.39,874.59,0.19829625]
[1757372277623,1.5115515,876.4,874.59,0.19829625]
[1757372277816,0.63577503,876.39,874.59,0.19829625]
[1757372278020,1.5115515,876.4,874.59,0.19829625]
[1757372278219,0.63577503,876.39,874.59,0.19829625]
[1757372278419,1.5115515,876.4,874.59,0.19829625]
[1757372278718,0.63571792,876.39,874.59,0.19829625]
[1757372278923,1.5115515,876.4,874.59,0.19829625]
[1757372279121,0.635718,876.39,874.59,0.19829625]
[1757372279323,1.5115515,876.39,874.59,0.19829625]
[1757372279525,1.5115515,876.41,874.59,0.19829625]
[1757372279724,0.6356716,876.4,874.59,0.19829625]
[1757372279924,1.5115515,876.41,874.59,0.19829625]
[1757372279925,0.6356716,876.39,874.59,0.19829625]
[1757372280124,1.5115515,876.41,874.59,0.19829625]
[1757372280326,0.63566578,876.4,874.59,0.19829625]
[1757372280525,0.63566578,876.39,874.59,0.19829625]
[1757372280727,1.5115515,876.41,874.59,0.19829625]
[1757372280926,0.636173,876.4,874.59,0.19829625]
[1757372281225,0.636173,876.39,874.59,0.19829625]
[1757372281525,1.5115515,876.41,874.59,0.19829625]
[1757372281725,0.63612573,876.4,874.59,0.19829625]
[1757372282025,0.63612573,876.39,874.59,0.19829625]
[1757372282227,1.5115515,876.42,874.59,0.19829625]
[1757372282432,0.63608359,876.41,874.59,0.19829625]
[1757372282728,0.63608359,876.4,874.59,0.19829625]
[1757372283031,0.63608359,876.39,874.59,0.19829625]
[1757372283329,1.5115515,876.43,874.59,0.19829625]
[1757372283527,0.63604505,876.42,874.59,0.19829625]
[1757372283729,0.63604505,876.41,874.59,0.19829625]
[1757372283932,0.63604505,876.4,874.59,0.19829625]
[1757372284130,0.63604505,876.39,874.59,0.19829625]
[1757372284331,1.5115515,876.43,874.59,0.19829625]
[1757372284532,0.63530492,876.42,874.59,0.19829625]
[1757372284729,0.63530492,876.41,874.59,0.19829625]
[1757372284933,0.63530492,876.4,874.59,0.19829625]
[1757372285133,0.63530492,876.39,874.59,0.19829625]
[1757372285429,1.5115515,876.43,874.59,0.19829625]
[1757372285632,0.63527435,876.42,874.59,0.19829625]
[1757372285830,1.5115515,876.4,874.59,0.19829625]
[1757372286139,0.63527435,876.39,874.59,0.19829625]
[1757372286434,1.5115515,876.43,874.59,0.19829625]
[1757372286630,0.63524777,876.42,874.59,0.19829625]
[1757372286834,0.63524777,876.41,874.59,0.19829625]
[1757372287034,0.63524777,876.4,874.59,0.19829625]
[1757372287232,0.63524777,876.39,874.59,0.19829625]
[1757372287432,1.5115515,876.43,874.59,0.19829625]
[1757372287631,0.63522487,876.42,874.59,0.19829625]
[1757372287836,0.63522487,876.41,874.59,0.19829625]
[1757372288033,0.63522487,876.4,874.59,0.19829625]
[1757372288331,0.63522487,876.39,874.59,0.19829625]
[1757372288532,1.5115515,876.43,874.59,0.19829625]
[1757372288731,0.63520531,876.42,874.59,0.19829625]
[1757372289032,0.63520531,876.41,874.59,0.19829625]
[1757372289333,0.63520531,876.4,874.59,0.19829625]
[1757372289533,0.63520531,876.39,874.59,0.19829625]
[1757372289736,1.5115515,876.42,874.59,0.19829625]
[1757372289937,0.6351895,876.41,874.59,0.19829625]
[1757372290137,0.6351895,876.4,874.59,0.19829625]
[1757372290333,0.6351895,876.39,874.59,0.19829625]
[1757372290634,1.5115515,876.4,874.59,0.19829625]
[1757372290937,0.63517717,876.39,874.59,0.19829625]
[1757372291136,1.5115515,876.4,874.59,0.19829625]
[1757372291431,0.63517251,876.39,874.59,0.19829625]
[1757372291634,1.5115515,876.4,874.59,0.19829625]
[1757372291832,0.63516819,876.39,874.59,0.19829625]
[1757372292033,1.5115515,876.39,874.59,0.19829625]
[1757372298943,1.5115515,876.41,874.59,0.19829625]
[1757372299140,0.63521105,876.4,874.59,0.19829625]
[1757372299443,0.63521105,876.39,874.59,0.19829625]
[1757372299643,1.5115515,876.52,874.59,0.19829625]
[1757372299944,0.63523171,876.51,874.59,0.19829625]
[1757372300143,0.63523171,876.5,874.59,0.19829625]
[1757372300340,0.63523171,876.49,874.59,0.19829625]
[1757372300543,0.63523171,876.48,874.59,0.19829625]
[1757372300745,0.63523171,876.47,874.59,0.19829625]
[1757372301043,0.63523171,876.46,874.59,0.19829625]
[1757372301240,0.63523171,876.45,874.59,0.19829625]
[1757372301446,0.63523171,876.44,874.59,0.19829625]
[1757372301644,0.63523171,876.43,874.59,0.19829625]
[1757372301846,0.63523171,876.42,874.59,0.19829625]
[1757372302046,0.63523171,876.41,874.59,0.19829625]
[1757372302343,0.63523171,876.4,874.59,0.19829625]
[1757372302547,0.63523171,876.39,874.59,0.19829625]
[1757372302747,1.5115515,876.52,874.59,0.19829625]
[1757372302947,0.63531021,876.51,874.59,0.19829625]
[1757372303146,0.63531021,876.5,874.59,0.19829625]
[1757372303348,0.63531021,876.49,874.59,0.19829625]
[1757372303647,0.63531021,876.48,874.59,0.19829625]
[1757372303844,0.63531021,876.47,874.59,0.19829625]
[1757372304048,0.63531021,876.46,874.59,0.19829625]
[1757372304348,0.63531021,876.45,874.59,0.19829625]
[1757372304549,0.63531021,876.44,874.59,0.19829625]
[1757372304846,0.63531021,876.43,874.59,0.19829625]
[1757372305046,0.63531021,876.42,874.59,0.19829625]
[1757372305250,0.63531021,876.41,874.59,0.19829625]
[1757372305446,0.63531021,876.4,874.59,0.19829625]
[1757372305651,0.63531021,876.39,874.59,0.19829625]
[1757372305853,1.5115515,876.51,874.59,0.19829625]
[1757372306052,0.63542415,876.5,874.59,0.19829625]
[1757372306251,0.63542415,876.49,874.59,0.19829625]
[1757372306549,0.63542415,876.48,874.59,0.19829625]
[1757372306847,0.63542415,876.47,874.59,0.19829625]
[1757372307151,0.63542415,876.46,874.59,0.19829625]
[1757372307352,0.63542415,876.45,874.59,0.19829625]
[1757372307651,0.63542415,876.44,874.59,0.19829625]
[1757372307952,0.63542415,876.43,874.59,0.19829625]
[1757372308248,0.63542415,876.42,874.59,0.19829625]
[1757372308451,0.63542415,876.41,874.59,0.19829625]
[1757372308652,0.63542415,876.4,874.59,0.19829625]
[1757372308849,0.63542415,876.39,874.59,0.19829625]
[1757372309049,1.5115515,876.48,874.59,0.19829625]
[1757372309251,1.5115515,876.39,874.59,0.19829625]
[1757372315053,1.5115515,876.44,874.59,0.19829625]
[1757372315259,0.6359536,876.43,874.59,0.19829625]
[1757372315460,0.6359536,876.42,874.59,0.19829625]
[1757372315655,0.6359536,876.41,874.59,0.19829625]
[1757372315856,0.6359536,876.4,874.59,0.19829625]
[1757372316056,0.6359536,876.39,874.59,0.19829625]
[1757372316259,1.5115515,876.44,874.59,0.19829625]
[1757372316561,0.63619719,876.43,874.59,0.19829625]
[1757372316759,0.63619719,876.42,874.59,0.19829625]
[1757372316955,0.63619719,876.41,874.59,0.19829625]
[1757372317159,0.63619719,876.4,874.59,0.19829625]
[1757372317359,0.63619719,876.39,874.59,0.19829625]
[1757372317558,1.5115515,876.43,874.59,0.19829625]
[1757372317860,0.63633733,876.42,874.59,0.19829625]
[1757372318059,0.63633733,876.41,874.59,0.19829625]
[1757372318257,0.63633733,876.4,874.59,0.19829625]
[1757372318461,0.63633733,876.39,874.59,0.19829625]
[1757372318661,1.5115515,876.41,874.59,0.19829625]
[1757372318860,0.63648917,876.4,874.59,0.19829625]
[1757372319065,0.63648917,876.39,874.59,0.19829625]
[1757372319365,1.5115515,876.4,874.59,0.19829625]
[1757372319561,0.63666557,876.39,874.59,0.19829625]
[1757372319764,1.5115515,876.4,874.59,0.19829625]
[1757372320064,0.63666557,876.39,874.59,0.19829625]
[1757372320261,1.5115515,876.39,874.59,0.19829625]
[1757372325468,1.36039636,876.39,874.59,0.19829625]
[1757372325771,1.36039636,876.39,874.62,2.5308841]
[1757372331472,1.22435673,876.39,874.62,2.5308841]
[1757372332271,1.22435673,876.39,874.63,2.5308841]
[1757372337177,1.22435673,876.39,874.62,2.5308841]
[1757372337479,1.10192106,876.39,874.62,2.5308841]
[1757372338384,1.10192106,876.39,874.61,2.5308841]
[1757372338784,1.10192106,876.39,874.62,2.5308841]
[1757372339385,1.10192106,876.39,874.63,2.5308841]
[1757372341383,1.10192106,876.39,874.59,2.72918035]
[1757372341883,1.10192106,876.39,874.59,0.19829625]
[1757372357600,0.99172896,876.39,874.59,0.19829625]
[1757372357801,0.99172896,876.39,875.19,1.5357]
[1757372358000,0.99172896,876.39,875.2,1.5357]
[1757372363506,0.89255607,876.39,875.2,1.5357]
[1757372363907,0.89255607,876.39,875.21,1.5357]
[1757372369503,0.80330047,876.39,875.21,1.5357]
[1757372370608,0.80330047,876.39,875.08,1.5357]
[1757372371408,0.80330047,876.39,875.09,1.5357]
[1757372376211,0.63030746,876.38,875.08,1.5357]
[1757372376415,2.5398345,877.07,875.08,1.5357]
[1757372376711,0.63028634,877.06,875.08,1.5357]
[1757372377011,0.63028634,877.05,875.07,1.5357]
[1757372377211,0.63028634,877.04,875.08,1.5357]
[1757372377415,0.63028634,877.03,875.07,1.5357]
[1757372377616,0.63028634,877.02,875.07,1.5357]
[1757372377813,0.63028634,877.01,875.07,1.5357]
[1757372378117,0.63028634,877.0,875.07,1.5357]
[1757372378318,0.63028634,876.99,875.07,1.5357]
[1757372378513,0.63028634,876.98,875.07,1.5357]
[1757372378717,2.5398345,877.08,875.07,1.5357]
[1757372378718,0.63028634,876.97,875.07,1.5357]
[1757372378914,0.63028634,876.96,875.07,1.5357]
[1757372379118,0.63028634,876.95,875.07,1.5357]
[1757372379319,0.63028634,876.94,875.07,1.5357]
[1757372379616,0.63028634,876.93,874.97,1.5357]
[1757372379818,0.63028634,876.92,874.97,1.5357]
[1757372380116,0.63028634,876.91,874.97,1.5357]
[1757372380312,0.63028634,876.9,874.97,1.5357]
[1757372380517,0.63028634,876.89,875.01,1.5357]
[1757372380715,0.63028634,876.88,875.01,1.5357]
[1757372380915,0.63028634,876.87,875.01,1.5357]
[1757372381217,0.63028634,876.86,875.01,1.5357]
[1757372381413,0.63028634,876.85,875.01,1.5357]
[1757372381715,0.63028634,876.84,875.01,1.5357]
[1757372381920,0.63028634,876.83,875.01,1.5357]
[1757372382115,0.63028634,876.82,875.01,1.5357]
[1757372382319,0.63028634,876.81,875.01,1.5357]
[1757372382516,0.63028634,876.8,875.01,1.5357]
[1757372382717,0.63028634,876.79,875.01,1.5357]
[1757372382917,0.63028634,876.78,875.01,1.5357]
[1757372383117,0.63028634,876.77,874.99,1.5357]
[1757372383320,0.63028634,876.76,874.99,1.5357]
[1757372383521,0.63028634,876.75,874.99,1.5357]
[1757372383719,0.63028634,876.74,874.99,1.5357]
[1757372383915,0.63028634,876.73,874.99,1.5357]
[1757372384116,0.63028634,876.72,874.99,1.5357]
[1757372384316,0.63028634,876.71,874.99,1.5357]
[1757372384521,0.63028634,876.7,874.99,1.5357]
[1757372384720,0.63028634,876.69,874.99,1.5357]
[1757372384916,0.63028634,876.68,874.99,1.5357]
[1757372385220,0.63028634,876.67,874.99,1.5357]
[1757372385517,0.63028634,876.66,874.99,1.5357]
[1757372385717,0.63028634,876.65,874.99,1.5357]
[1757372386019,0.63028634,876.64,874.99,1.5357]
[1757372386221,0.63028634,876.63,874.99,1.5357]
[1757372386419,0.63028634,876.62,874.99,1.5357]
[1757372386622,0.63028634,876.61,874.99,1.5357]
[1757372386823,5.1015647,878.35,874.99,1.5357]
[1757372386824,0.63028634,876.6,874.99,1.5357]
[1757372387021,0.63028634,876.59,874.99,1.5357]
[1757372387225,0.63028634,876.58,874.99,1.5357]
[1757372387423,0.63028634,876.57,874.99,1.5357]
[1757372387621,0.63028634,876.56,874.99,1.5357]
[1757372387824,0.63028634,876.55,874.97,1.5357]
[1757372388024,0.63028634,876.54,874.97,1.5357]
[1757372388320,0.63028634,876.53,874.97,1.5357]
[1757372388523,0.63028634,876.52,874.97,1.5357]
[1757372388724,0.63028634,876.51,874.97,1.5357]
[1757372388923,0.63028634,876.5,874.97,1.5357]
[1757372389221,0.63028634,876.49,874.97,1.5357]
[1757372389419,0.63028634,876.48,874.97,1.5357]
[1757372389625,1.5272436,876.37,875.07,1.5357]
[1757372392823,1.5272436,876.37,875.1,1.5357]
[1757372394725,1.5272436,876.37,875.04,1.5357]
[1757372396726,1.5272436,876.38,875.05,1.5357]
[1757372397727,1.5272436,876.38,875.07,1.5357]
[1757372400533,1.5272436,876.38,875.05,1.5357]
[1757372402134,1.5272436,876.39,875.04,1.5357]
[1757372402332,0.63066165,876.38,875.04,1.5357]
[1757372402535,1.5272436,876.39,875.04,1.5357]
[1757372402734,0.63066126,876.38,875.04,1.5357]
[1757372402934,1.5272436,876.39,875.04,1.5357]
[1757372403135,0.63066121,876.38,875.04,1.5357]
[1757372403336,1.5272436,876.39,875.04,1.5357]
[1757372403635,2.5398345,877.15,875.03,1.5357]
[1757372403636,2.15790522,876.38,875.03,1.5357]
[1757372403831,1.5272436,876.38,875.04,1.5357]
[1757372404132,0.63065568,876.37,875.04,1.5357]
[1757372404337,1.5272436,876.38,875.04,1.5357]
[1757372404536,1.5272436,876.4,875.02,1.5357]
[1757372404831,1.5272436,876.37,875.05,1.5357]
[1757372405037,1.5272436,876.38,875.03,1.5357]
[1757372405235,0.63061612,876.37,875.03,1.5357]
[1757372405439,1.5272436,876.38,875.03,1.5357]
[1757372405637,2.1578572,876.37,875.04,1.5357]
[1757372405842,1.5272436,876.37,875.04,1.5357]
[1757372407338,1.5272436,876.38,875.04,1.5357]
[1757372407540,2.15785284,876.37,875.04,1.5357]
[1757372407739,1.5272436,876.37,875.04,1.5357]
[1757372408438,1.5272436,876.37,875.06,1.5357]
[1757372409043,1.5272436,876.37,875.07,1.5357]
[1757372409244,1.5272436,876.37,875.09,1.5357]
[1757372409544,1.5272436,876.38,875.1,1.5357]
[1757372409841,1.5272436,876.38,875.09,1.5357]
[1757372410240,1.5272436,876.38,875.08,1.5357]
[1757372412646,1.5272436,876.38,875.1,1.5357]
[1757372413451,2.15785501,876.37,875.07,1.5357]
[1757372413649,1.5272436,876.37,875.07,1.5357]
[1757372416849,1.5272436,876.37,875.08,1.5357]
[1757372417250,1.5272436,876.37,875.09,1.5357]
[1757372417446,1.5272436,876.37,875.08,1.5357]
[1757372418548,1.5272436,876.37,875.07,1.5357]
[1757372418852,1.5272436,876.37,875.1,1.5357]
[1757372419555,1.5272436,876.5,874.9,1.5357]
[1757372419753,0.63062211,876.49,874.9,1.5357]
[1757372419953,0.63062211,876.48,874.9,1.5357]
[1757372420253,0.63062211,876.47,874.9,1.5357]
[1757372420553,0.63062211,876.46,874.9,1.5357]
[1757372420753,0.63062211,876.45,874.9,1.5357]
[1757372420953,0.63062211,876.44,874.9,1.5357]
[1757372421154,0.63062211,876.43,874.9,1.5357]
[1757372421351,0.63062211,876.42,874.9,1.5357]
[1757372421553,0.63062211,876.41,874.9,1.5357]
[1757372421752,0.63062211,876.4,874.9,1.5357]
[1757372421956,0.63062211,876.39,874.9,1.5357]
[1757372422153,0.63062211,876.38,874.9,1.5357]
[1757372422351,0.63062211,876.37,874.9,1.5357]
[1757372422553,1.5272436,876.51,874.9,1.5357]
[1757372422854,0.6306951,876.5,874.9,1.5357]
[1757372423052,0.6306951,876.49,874.9,1.5357]
[1757372423257,0.6306951,876.48,874.9,1.5357]
[1757372423556,0.6306951,876.47,874.91,1.5357]
[1757372423756,0.6306951,876.46,874.91,1.5357]
[1757372424055,0.6306951,876.45,874.91,1.5357]
[1757372424256,0.6306951,876.44,874.91,1.5357]
[1757372424457,0.6306951,876.43,874.91,1.5357]
[1757372424656,0.6306951,876.42,874.91,1.5357]
[1757372424855,0.6306951,876.41,874.91,1.5357]
[1757372425056,0.6306951,876.4,874.92,1.5357]
[1757372425258,0.6306951,876.39,874.92,1.5357]
[1757372425457,0.6306951,876.38,874.92,1.5357]
[1757372425752,2.1579387,876.37,875.16,1.5357]
[1757372425960,1.5272436,876.37,875.16,1.5357]
[1757372426452,1.5272436,876.37,875.15,1.5357]
[1757372426653,1.5272436,876.37,875.17,1.5357]
[1757372426654,1.37451925,876.37,875.17,1.5357]
[1757372426856,1.37451925,876.37,875.18,1.5357]
[1757372428161,1.37451925,876.37,875.16,1.5357]
[1757372428856,1.37451925,876.37,875.14,1.5357]
[1757372433364,1.37451925,876.37,875.13,1.5357]
[1757372433859,1.37451925,876.37,875.14,1.5357]
[1757372434059,1.37451925,876.37,875.11,1.5357]
[1757372435064,1.37451925,876.37,875.12,1.5357]
[1757372436760,1.37451925,876.37,875.14,1.5357]
[1757372439366,1.37451925,876.37,875.13,1.5357]
[1757372443267,1.37451925,876.37,875.14,1.5357]
[1757372443864,1.23706733,876.37,875.18,1.5357]
[1757372445367,1.23706733,876.37,875.19,1.5357]
[1757372447369,1.23706733,876.37,875.07,1.5357]
[1757372448770,1.23706733,876.37,874.59,0.19829625]
[1757372448771,1.23706733,876.37,875.06,1.5357]
[1757372449869,1.23706733,876.37,875.07,1.5357]
[1757372452971,1.23706733,876.37,875.06,1.5357]
[1757372453576,1.23706733,876.37,875.07,1.5357]
[1757372454873,1.23706733,876.37,875.06,1.5357]
[1757372455173,1.23706733,876.37,875.05,1.5357]
[1757372457278,1.23706733,876.37,875.12,1.5357]
[1757372458476,1.23706733,876.37,875.13,1.5357]
[1757372459373,1.23706733,876.37,875.14,1.5357]
[1757372459673,1.23706733,876.37,875.11,1.5357]
[1757372460178,1.23706733,876.37,875.12,1.5357]
[1757372460576,1.23706733,876.37,875.11,1.5357]
[1757372460778,1.23706733,876.37,875.12,1.5357]
[1757372461176,1.23706733,876.37,875.11,1.5357]
[1757372461481,1.23706733,876.37,875.12,1.5357]
[1757372462682,1.23706733,876.37,875.11,1.5357]
[1757372464884,1.23706733,876.37,875.13,1.5357]
[1757372465082,1.23706733,876.37,875.15,1.5357]
[1757372469586,1.23706733,876.37,875.18,1.5357]
[1757372471387,1.23706733,876.37,875.17,1.5357]
[1757372472592,1.23706733,876.37,875.18,1.5357]
[1757372473093,1.23706733,876.52,874.89,1.5357]
[1757372473289,1.23706733,876.52,874.59,0.19829625]
[1757372473290,1.23706733,876.5,874.86,1.5357]
[1757372473493,0.62846501,876.49,874.86,1.5357]
[1757372473688,0.62846501,876.48,874.86,1.5357]
[1757372473887,0.62846501,876.47,874.86,1.5357]
[1757372474092,0.62846501,876.46,874.87,1.5357]
[1757372474391,0.62846501,876.45,874.86,1.5357]
[1757372474590,0.62846501,876.44,874.86,1.5357]
[1757372474789,0.62846501,876.43,874.86,1.5357]
[1757372475087,0.62846501,876.42,874.86,1.5357]
[1757372475289,0.62846501,876.41,874.86,1.5357]
[1757372475489,0.62846501,876.4,874.86,1.5357]
[1757372475689,0.62846501,876.39,874.86,1.5357]
[1757372475891,0.62846501,876.38,874.86,1.5357]
[1757372476091,0.62846501,876.37,874.86,1.5357]
[1757372476289,0.62846501,876.36,874.86,1.5357]
[1757372476489,0.62846501,876.35,874.86,1.5357]
[1757372476688,1.23706733,876.51,874.86,1.5357]
[1757372476689,0.62846501,876.34,874.86,1.5357]
[1757372476893,1.23706733,876.51,874.86,1.5357]
[1757372477090,0.62829498,876.5,874.86,1.5357]
[1757372477289,0.62829498,876.49,874.86,1.5357]
[1757372477492,0.62829498,876.48,874.86,1.5357]
[1757372477690,0.62829498,876.47,874.86,1.5357]
[1757372477893,0.62829498,876.46,874.86,1.5357]
[1757372478093,0.62829498,876.45,874.86,1.5357]
[1757372478296,0.62829498,876.44,874.85,1.5357]
[1757372478596,0.62829498,876.43,874.84,0.19828438]
[1757372478796,0.62829498,876.42,874.84,0.19828438]
[1757372478993,1.23706733,876.15,874.84,0.19828438]
[1757372479192,1.23706733,876.17,874.84,0.19828438]
[1757372479398,0.62764253,876.16,874.84,0.19828438]
[1757372479593,0.62764253,876.15,874.84,0.19828438]
[1757372479793,0.62764253,876.14,874.84,0.19828438]
[1757372479998,1.23706733,876.17,874.84,0.19828438]
[1757372480199,0.62764253,876.16,874.84,0.19828438]
[1757372480499,0.62764253,876.15,874.84,0.19828438]
[1757372480699,0.62764253,876.14,874.84,0.19828438]
[1757372480896,1.23706733,876.18,874.84,0.19828438]
[1757372481095,0.62739038,876.17,874.84,0.19828438]
[1757372481396,0.62739038,876.16,874.84,0.19828438]
[1757372481695,0.62739038,876.15,874.84,0.19828438]
[1757372481896,0.62739038,876.14,874.84,0.19828438]
[1757372482195,1.23706733,876.15,874.84,0.19828438]
[1757372482399,0.62704522,876.14,874.84,0.19828438]
[1757372482695,1.23706733,876.14,874.84,0.19828438]
[1757372483095,1.23706733,876.16,874.84,0.19828438]
[1757372483402,0.62691208,876.15,874.84,0.19828438]
[1757372483600,0.62691208,876.14,874.84,0.19828438]
[1757372483795,1.23706733,876.17,874.84,0.19828438]
[1757372483999,0.62691208,876.16,874.84,0.19828438]
[1757372484298,0.62691208,876.15,874.84,0.19828438]
[1757372484497,0.62691208,876.14,874.84,0.19828438]
[1757372484697,1.23706733,876.23,874.84,0.19828438]
[1757372485002,0.62679543,876.22,874.84,0.19828438]
[1757372485201,1.23706733,876.2,874.84,0.19828438]
[1757372485401,0.62679543,876.19,874.84,0.19828438]
[1757372485601,0.62679543,876.18,874.84,0.19828438]
[1757372485896,0.62679543,876.17,874.84,0.19828438]
[1757372486097,0.62679543,876.16,874.84,0.19828438]
[1757372486401,0.62679543,876.15,874.84,0.19828438]
[1757372486601,0.62679543,876.14,874.84,0.19828438]
[1757372486801,0.62679543,876.13,874.84,0.19828438]
[1757372487099,0.62679543,876.12,874.84,0.19828438]